[Event "Titled Tuesday Blitz July 25 Late 2023"]
[White "Kochiev, Ivan"]
[Black "Adewumi, Tanitoluwa"]
[WhiteFideId "2917890"]
[BlackFideId "30966396"]
[WhiteElo "2542"]
[BlackElo "2696"]
[Result "1-0"]
[Round "7"]
[TimeControl "180+2"]
[Date "2023.07.25"]
[WhiteClock "0:00:11"]
[BlackClock "0:00:25"]
[Board "45"]

1. e4 {[%clk 0:02:58]}  c5 {[%clk 0:02:58]} 2. Nf3 {[%clk 0:02:59]}  e6 {[%clk 0:02:58]} 3. d4 {[%clk 0:02:59]}  cxd4 {[%clk 0:02:59]} 4. Nxd4 {[%clk 0:03:00]}  a6 {[%clk 0:02:59]} 5. c4 {[%clk 0:03:00]}  Nf6 {[%clk 0:02:58]} 6. Nc3 {[%clk 0:03:00]}  Nc6 {[%clk 0:02:55]} 7. Nxc6 {[%clk 0:02:58]}  dxc6 {[%clk 0:02:53]} 8. Qxd8+ {[%clk 0:02:57]}  Kxd8 {[%clk 0:02:53]} 9. e5 {[%clk 0:02:49]}  Nd7 {[%clk 0:02:44]} 10. f4 {[%clk 0:02:37]}  f6 {[%clk 0:02:44]} 11. exf6 {[%clk 0:02:35]}  gxf6 {[%clk 0:02:45]} 12. Be3 {[%clk 0:02:32]}  Bc5 {[%clk 0:02:45]} 13. Kf2 {[%clk 0:02:25]}  Ke7 {[%clk 0:02:43]} 14. Rd1 {[%clk 0:02:23]}  Bxe3+ {[%clk 0:02:40]} 15. Kxe3 {[%clk 0:02:24]}  b5 {[%clk 0:02:39]} 16. Be2 {[%clk 0:02:21]}  Bb7 {[%clk 0:02:36]} 17. Ne4 {[%clk 0:02:15]}  c5 {[%clk 0:02:14]} 18. Rxd7+ {[%clk 0:01:56]}  Kxd7 {[%clk 0:02:12]} 19. Nxc5+ {[%clk 0:01:57]}  Kc6 {[%clk 0:02:06]} 20. Nxb7 {[%clk 0:01:58]}  Kxb7 {[%clk 0:01:55]} 21. Bf3+ {[%clk 0:01:57]}  Kc7 {[%clk 0:01:56]} 22. Bxa8 {[%clk 0:01:57]}  Rxa8 {[%clk 0:01:56]} 23. a3 {[%clk 0:01:19]}  bxc4 {[%clk 0:01:52]} 24. Rc1 {[%clk 0:01:14]}  Rb8 {[%clk 0:01:51]} 25. Rxc4+ {[%clk 0:01:12]}  Kd6 {[%clk 0:01:52]} 26. b4 {[%clk 0:01:04]}  a5 {[%clk 0:01:46]} 27. Kd4 {[%clk 0:00:47]}  axb4 {[%clk 0:01:45]} 28. axb4 {[%clk 0:00:48]}  h5 {[%clk 0:01:41]} 29. Kc3 {[%clk 0:00:36]}  Rg8 {[%clk 0:01:37]} 30. g3 {[%clk 0:00:33]}  h4 {[%clk 0:01:25]} 31. gxh4 {[%clk 0:00:31]}  Rg2 {[%clk 0:01:17]} 32. b5 {[%clk 0:00:28]}  Rxh2 {[%clk 0:01:03]} 33. b6 {[%clk 0:00:25]}  Rh3+ {[%clk 0:00:43]} 34. Kb4 {[%clk 0:00:13]}  Rh1 {[%clk 0:00:36]} 35. Ka4 {[%clk 0:00:11]}  Ra1+ {[%clk 0:00:33]} 36. Kb5 {[%clk 0:00:10]}  Ra8 {[%clk 0:00:32]} 37. b7 {[%clk 0:00:08]}  Rb8 {[%clk 0:00:29]} 38. Kb6 {[%clk 0:00:08]}  Kd7 {[%clk 0:00:24]} 39. Ka7 {[%clk 0:00:08]}  Rg8 {[%clk 0:00:22]} 40. b8=Q {[%clk 0:00:07]}  Rxb8 {[%clk 0:00:23]} 41. Kxb8 {[%clk 0:00:08]}  Kd6 {[%clk 0:00:23]} 42. h5 {[%clk 0:00:08]}  Kd5 {[%clk 0:00:24]} 43. Rc1 {[%clk 0:00:08]}  Ke4 {[%clk 0:00:24]} 44. Rf1 {[%clk 0:00:08]}  Kf5 {[%clk 0:00:24]} 45. Kc7 {[%clk 0:00:08]}  e5 {[%clk 0:00:23]} 46. fxe5+ {[%clk 0:00:08]}  Kxe5 {[%clk 0:00:24]} 47. h6 {[%clk 0:00:09]}  f5 {[%clk 0:00:24]} 48. h7 {[%clk 0:00:10]}  Kf6 {[%clk 0:00:24]} 49. h8=Q+ {[%clk 0:00:10]}  Kg6 {[%clk 0:00:25]} 50. Rg1+ {[%clk 0:00:10]}  Kf7 {[%clk 0:00:25]} 51. Qh6 {[%clk 0:00:10]}  Ke7 {[%clk 0:00:25]} 52. Rg7+ {[%clk 0:00:10]}  Ke8 {[%clk 0:00:25]} 53. Qh8# {[%clk 0:00:11]} 1-0


[Site "https://www.chess.com"]

[Event "Titled Tuesday Blitz July 25 Late 2023"]
[White "Ordekalog"]
[Black "Sabuk, Piotr"]
[BlackFideId "1137565"]
[WhiteElo "2520"]
[BlackElo "2681"]
[Result "1/2-1/2"]
[Round "7"]
[TimeControl "180+2"]
[Date "2023.07.25"]
[WhiteClock "0:00:06"]
[BlackClock "0:00:05"]
[Board "49"]

1. e4 {[%clk 0:03:00]}  e5 {[%clk 0:02:57]} 2. Nf3 {[%clk 0:03:00]}  Nc6 {[%clk 0:02:58]} 3. Bb5 {[%clk 0:02:59]}  a6 {[%clk 0:02:57]} 4. Bxc6 {[%clk 0:02:59]}  dxc6 {[%clk 0:02:57]} 5. O-O {[%clk 0:02:59]}  f6 {[%clk 0:02:51]} 6. d4 {[%clk 0:02:59]}  exd4 {[%clk 0:02:51]} 7. Nxd4 {[%clk 0:02:58]}  c5 {[%clk 0:02:49]} 8. Nb3 {[%clk 0:02:58]}  Qxd1 {[%clk 0:02:48]} 9. Rxd1 {[%clk 0:02:58]}  Bg4 {[%clk 0:02:39]} 10. f3 {[%clk 0:02:57]}  Bd7 {[%clk 0:02:39]} 11. Bf4 {[%clk 0:02:53]}  O-O-O {[%clk 0:02:37]} 12. Nc3 {[%clk 0:02:53]}  c4 {[%clk 0:02:27]} 13. Nd4 {[%clk 0:02:52]}  Ne7 {[%clk 0:02:23]} 14. Kf2 {[%clk 0:02:44]}  Ng6 {[%clk 0:02:23]} 15. Be3 {[%clk 0:02:44]}  Ne5 {[%clk 0:02:19]} 16. h3 {[%clk 0:02:42]}  Bd6 {[%clk 0:02:15]} 17. Nf5 {[%clk 0:02:34]}  Bxf5 {[%clk 0:02:01]} 18. exf5 {[%clk 0:02:35]}  b5 {[%clk 0:02:00]} 19. Ne4 {[%clk 0:02:27]}  Be7 {[%clk 0:01:59]} 20. Bc5 {[%clk 0:02:25]}  Rhe8 {[%clk 0:01:42]} 21. a4 {[%clk 0:02:20]}  Rxd1 {[%clk 0:01:36]} 22. Rxd1 {[%clk 0:02:21]}  Bd8 {[%clk 0:01:32]} 23. axb5 {[%clk 0:02:11]}  axb5 {[%clk 0:01:32]} 24. Be3 {[%clk 0:02:05]}  Be7 {[%clk 0:01:22]} 25. Bc5 {[%clk 0:02:02]}  Bd8 {[%clk 0:01:22]} 26. Bb4 {[%clk 0:02:01]}  Nf7 {[%clk 0:01:12]} 27. g4 {[%clk 0:01:50]}  c6 {[%clk 0:01:11]} 28. Bc5 {[%clk 0:01:47]}  Bc7 {[%clk 0:01:06]} 29. Ra1 {[%clk 0:01:42]}  Kb7 {[%clk 0:01:01]} 30. Ra7+ {[%clk 0:01:41]}  Kb8 {[%clk 0:01:01]} 31. Ra6 {[%clk 0:01:38]}  Kb7 {[%clk 0:01:01]} 32. Ra7+ {[%clk 0:01:37]}  Kb8 {[%clk 0:01:01]} 33. Ra1 {[%clk 0:01:35]}  Rd8 {[%clk 0:00:52]} 34. Ke2 {[%clk 0:01:33]}  Ne5 {[%clk 0:00:47]} 35. Be3 {[%clk 0:01:24]}  Re8 {[%clk 0:00:44]} 36. Kf2 {[%clk 0:01:21]}  Nd7 {[%clk 0:00:37]} 37. Rd1 {[%clk 0:01:19]}  Nb6 {[%clk 0:00:35]} 38. Bxb6 {[%clk 0:00:35]}  Bxb6+ {[%clk 0:00:35]} 39. Ke2 {[%clk 0:00:35]}  Kc7 {[%clk 0:00:34]} 40. Ra1 {[%clk 0:00:35]}  g6 {[%clk 0:00:20]} 41. fxg6 {[%clk 0:00:34]}  hxg6 {[%clk 0:00:20]} 42. Kf1 {[%clk 0:00:33]}  f5 {[%clk 0:00:19]} 43. gxf5 {[%clk 0:00:31]}  gxf5 {[%clk 0:00:20]} 44. Ng3 {[%clk 0:00:32]}  f4 {[%clk 0:00:19]} 45. Ne4 {[%clk 0:00:31]}  Rg8 {[%clk 0:00:18]} 46. Re1 {[%clk 0:00:23]}  Be3 {[%clk 0:00:14]} 47. Ke2 {[%clk 0:00:19]}  Rg2+ {[%clk 0:00:14]} 48. Kd1 {[%clk 0:00:19]}  Rh2 {[%clk 0:00:14]} 49. b3 {[%clk 0:00:14]}  cxb3 {[%clk 0:00:12]} 50. cxb3 {[%clk 0:00:15]}  Rxh3 {[%clk 0:00:12]} 51. Ke2 {[%clk 0:00:14]}  Rh2+ {[%clk 0:00:13]} 52. Kd3 {[%clk 0:00:14]}  Kb6 {[%clk 0:00:11]} 53. Rd1 {[%clk 0:00:12]}  Rh3 {[%clk 0:00:09]} 54. Ke2 {[%clk 0:00:11]}  Rh2+ {[%clk 0:00:09]} 55. Kd3 {[%clk 0:00:12]}  c5 {[%clk 0:00:09]} 56. Nf6 {[%clk 0:00:11]}  Rh6 {[%clk 0:00:06]} 57. Nd5+ {[%clk 0:00:10]}  Kc6 {[%clk 0:00:05]} 58. Nxe3 {[%clk 0:00:11]}  fxe3 {[%clk 0:00:04]} 59. Kxe3 {[%clk 0:00:11]}  c4 {[%clk 0:00:03]} 60. bxc4 {[%clk 0:00:10]}  bxc4 {[%clk 0:00:04]} 61. f4 {[%clk 0:00:10]}  Kc5 {[%clk 0:00:03]} 62. f5 {[%clk 0:00:09]}  c3 {[%clk 0:00:04]} 63. Kf4 {[%clk 0:00:08]}  Kc4 {[%clk 0:00:03]} 64. Kg5 {[%clk 0:00:08]}  Rh2 {[%clk 0:00:03]} 65. Rd8 {[%clk 0:00:07]}  c2 {[%clk 0:00:03]} 66. Rc8+ {[%clk 0:00:07]}  Kd3 {[%clk 0:00:04]} 67. f6 {[%clk 0:00:07]}  Rg2+ {[%clk 0:00:04]} 68. Kf5 {[%clk 0:00:07]}  Rf2+ {[%clk 0:00:04]} 69. Ke6 {[%clk 0:00:07]}  Rf1 {[%clk 0:00:04]} 70. f7 {[%clk 0:00:07]}  Kd2 {[%clk 0:00:04]} 71. Ke7 {[%clk 0:00:05]}  c1=Q {[%clk 0:00:04]} 72. Rxc1 {[%clk 0:00:05]}  Kxc1 {[%clk 0:00:04]} 73. f8=Q {[%clk 0:00:05]}  Rxf8 {[%clk 0:00:05]} 74. Kxf8 {[%clk 0:00:06]} 1/2-1/2


[Site "https://www.chess.com"]

[Event "Titled Tuesday Blitz July 25 Late 2023"]
[White "Gubajdullin, Alexei"]
[Black "Vega Gutierrez, Sabrina"]
[WhiteFideId "4141202"]
[BlackFideId "2219026"]
[WhiteElo "2680"]
[BlackElo "2440"]
[Result "1-0"]
[Round "7"]
[TimeControl "180+2"]
[Date "2023.07.25"]
[WhiteClock "0:01:44"]
[BlackClock "0:00:00"]
[Board "50"]

1. d4 {[%clk 0:02:59]}  d5 {[%clk 0:02:59]} 2. Nf3 {[%clk 0:02:58]}  e6 {[%clk 0:02:58]} 3. Bf4 {[%clk 0:02:56]}  Bd6 {[%clk 0:02:54]} 4. Bg3 {[%clk 0:02:56]}  Nf6 {[%clk 0:02:49]} 5. Nbd2 {[%clk 0:02:56]}  O-O {[%clk 0:02:48]} 6. e3 {[%clk 0:02:56]}  c5 {[%clk 0:02:47]} 7. c3 {[%clk 0:02:56]}  b6 {[%clk 0:02:46]} 8. Bd3 {[%clk 0:02:56]}  Ba6 {[%clk 0:02:46]} 9. Bxa6 {[%clk 0:02:53]}  Nxa6 {[%clk 0:02:47]} 10. a4 {[%clk 0:02:52]}  Nb8 {[%clk 0:02:30]} 11. a5 {[%clk 0:02:50]}  Bxg3 {[%clk 0:02:25]} 12. hxg3 {[%clk 0:02:50]}  Nc6 {[%clk 0:02:25]} 13. axb6 {[%clk 0:02:47]}  axb6 {[%clk 0:02:26]} 14. O-O {[%clk 0:02:47]}  c4 {[%clk 0:02:10]} 15. b3 {[%clk 0:02:34]}  b5 {[%clk 0:02:10]} 16. bxc4 {[%clk 0:02:34]}  bxc4 {[%clk 0:02:10]} 17. Qc2 {[%clk 0:02:28]}  Qc7 {[%clk 0:02:00]} 18. e4 {[%clk 0:02:28]}  h6 {[%clk 0:01:42]} 19. e5 {[%clk 0:02:25]}  Nd7 {[%clk 0:01:41]} 20. g4 {[%clk 0:02:25]}  Ra5 {[%clk 0:01:30]} 21. g5 {[%clk 0:02:21]}  Rfa8 {[%clk 0:00:59]} 22. Rxa5 {[%clk 0:02:18]}  Qxa5 {[%clk 0:00:59]} 23. gxh6 {[%clk 0:02:13]}  gxh6 {[%clk 0:00:48]} 24. Qc1 {[%clk 0:02:09]}  Qa3 {[%clk 0:00:46]} 25. Qc2 {[%clk 0:02:06]}  Qa2 {[%clk 0:00:30]} 26. Qd1 {[%clk 0:02:02]}  Qb2 {[%clk 0:00:29]} 27. Nb1 {[%clk 0:01:58]}  Ra1 {[%clk 0:00:16]} 28. Nfd2 {[%clk 0:01:56]}  Kf8 {[%clk 0:00:12]} 29. Qh5 {[%clk 0:01:54]}  Ke8 {[%clk 0:00:12]} 30. Qxh6 {[%clk 0:01:54]}  Nf8 {[%clk 0:00:12]} 31. f4 {[%clk 0:01:53]}  Na5 {[%clk 0:00:05]} 32. f5 {[%clk 0:01:50]}  Nb3 {[%clk 0:00:05]} 33. fxe6 {[%clk 0:01:50]}  Nxe6 {[%clk 0:00:03]} 34. Qh7 {[%clk 0:01:45]}  Nd8 {[%clk 0:00:00]} 35. e6 {[%clk 0:01:44]} 1-0


[Site "https://www.chess.com"]

[Event "Titled Tuesday Blitz July 25 Late 2023"]
[White "Caruana, Fabiano"]
[Black "EsmeraldasAnderson03"]
[WhiteFideId "2020009"]
[WhiteElo "3103"]
[BlackElo "2434"]
[Result "1-0"]
[Round "7"]
[TimeControl "180+2"]
[Date "2023.07.25"]
[WhiteClock "0:01:53"]
[BlackClock "0:00:48"]
[Board "52"]

1. f4 {[%clk 0:03:00]}  d5 {[%clk 0:02:55]} 2. b3 {[%clk 0:02:58]}  Nf6 {[%clk 0:02:55]} 3. Bb2 {[%clk 0:02:58]}  Bf5 {[%clk 0:02:49]} 4. h3 {[%clk 0:02:58]}  h6 {[%clk 0:02:46]} 5. e3 {[%clk 0:02:57]}  Bh7 {[%clk 0:02:45]} 6. Nc3 {[%clk 0:02:56]}  e6 {[%clk 0:02:46]} 7. Nf3 {[%clk 0:02:56]}  Be7 {[%clk 0:02:39]} 8. Qe2 {[%clk 0:02:54]}  a6 {[%clk 0:02:34]} 9. O-O-O {[%clk 0:02:54]}  b5 {[%clk 0:02:31]} 10. g4 {[%clk 0:02:53]}  b4 {[%clk 0:02:31]} 11. Na4 {[%clk 0:02:52]}  O-O {[%clk 0:02:08]} 12. Rg1 {[%clk 0:02:50]}  Ne4 {[%clk 0:01:59]} 13. d3 {[%clk 0:02:46]}  Nc5 {[%clk 0:01:59]} 14. Nxc5 {[%clk 0:02:45]}  Bxc5 {[%clk 0:02:00]} 15. g5 {[%clk 0:02:45]}  hxg5 {[%clk 0:01:51]} 16. Nxg5 {[%clk 0:02:46]}  d4 {[%clk 0:01:27]} 17. Nxh7 {[%clk 0:02:44]}  Kxh7 {[%clk 0:01:27]} 18. Qh5+ {[%clk 0:02:44]}  Kg8 {[%clk 0:01:26]} 19. Bg2 {[%clk 0:02:44]}  Nd7 {[%clk 0:01:23]} 20. Be4 {[%clk 0:02:39]}  f5 {[%clk 0:01:20]} 21. exd4 {[%clk 0:02:16]}  Bd6 {[%clk 0:01:02]} 22. Rxg7+ {[%clk 0:02:12]}  Kxg7 {[%clk 0:01:01]} 23. Rg1+ {[%clk 0:02:04]}  Kf6 {[%clk 0:01:00]} 24. d5+ {[%clk 0:01:54]}  Ke7 {[%clk 0:00:48]} 25. Rg7+ {[%clk 0:01:53]} 1-0


[Site "https://www.chess.com"]

[Event "Titled Tuesday Blitz July 25 Late 2023"]
[White "Grigoriants, Sergey"]
[Black "Gireman, Ja"]
[WhiteFideId "4130804"]
[BlackFideId "5043794"]
[WhiteElo "2862"]
[BlackElo "2569"]
[Result "1-0"]
[Round "7"]
[TimeControl "180+2"]
[Date "2023.07.25"]
[WhiteClock "0:01:38"]
[BlackClock "0:01:46"]
[Board "53"]

1. d4 {[%clk 0:02:57]}  Nf6 {[%clk 0:02:59]} 2. c4 {[%clk 0:02:57]}  g6 {[%clk 0:03:00]} 3. f3 {[%clk 0:02:57]}  d5 {[%clk 0:02:51]} 4. cxd5 {[%clk 0:02:57]}  Nxd5 {[%clk 0:02:52]} 5. e4 {[%clk 0:02:57]}  Nb6 {[%clk 0:02:53]} 6. Be3 {[%clk 0:02:56]}  Bg7 {[%clk 0:02:54]} 7. Nc3 {[%clk 0:02:56]}  O-O {[%clk 0:02:54]} 8. Qd2 {[%clk 0:02:57]}  f5 {[%clk 0:02:54]} 9. O-O-O {[%clk 0:02:56]}  fxe4 {[%clk 0:02:54]} 10. fxe4 {[%clk 0:02:56]}  Be6 {[%clk 0:02:42]} 11. Nf3 {[%clk 0:02:54]}  Bc4 {[%clk 0:02:41]} 12. Bh6 {[%clk 0:02:39]}  Bxf1 {[%clk 0:02:38]} 13. Bxg7 {[%clk 0:02:39]}  Kxg7 {[%clk 0:02:29]} 14. Rhxf1 {[%clk 0:02:38]}  e6 {[%clk 0:02:22]} 15. Ng5 {[%clk 0:02:31]}  Qe7 {[%clk 0:02:18]} 16. Rxf8 {[%clk 0:02:30]}  Kxf8 {[%clk 0:02:19]} 17. Rf1+ {[%clk 0:02:29]}  Kg8 {[%clk 0:02:18]} 18. Rf7 {[%clk 0:02:20]}  Qb4 {[%clk 0:02:17]} 19. Qf2 {[%clk 0:02:09]}  N8d7 {[%clk 0:01:46]} 20. Rxd7 {[%clk 0:01:38]} 1-0


[Site "https://www.chess.com"]

[Event "Titled Tuesday Blitz July 25 Late 2023"]
[White "Miladinovic, Igor"]
[Black "Vlassov, Nikolai"]
[WhiteFideId "4203380"]
[BlackFideId "4103360"]
[WhiteElo "2811"]
[BlackElo "2568"]
[Result "1-0"]
[Round "7"]
[TimeControl "180+2"]
[Date "2023.07.25"]
[WhiteClock "0:00:11"]
[BlackClock "0:00:05"]
[Board "54"]

1. d4 {[%clk 0:03:00]}  Nf6 {[%clk 0:02:58]} 2. Nc3 {[%clk 0:03:00]}  d5 {[%clk 0:02:57]} 3. Bf4 {[%clk 0:03:00]}  e6 {[%clk 0:02:57]} 4. e3 {[%clk 0:03:00]}  Bb4 {[%clk 0:02:57]} 5. a3 {[%clk 0:02:56]}  Bxc3+ {[%clk 0:02:57]} 6. bxc3 {[%clk 0:02:56]}  O-O {[%clk 0:02:56]} 7. c4 {[%clk 0:02:55]}  c5 {[%clk 0:02:55]} 8. Nf3 {[%clk 0:02:37]}  Nc6 {[%clk 0:02:50]} 9. cxd5 {[%clk 0:02:24]}  Nxd5 {[%clk 0:02:48]} 10. Bg3 {[%clk 0:02:24]}  cxd4 {[%clk 0:02:43]} 11. exd4 {[%clk 0:02:25]}  Qa5+ {[%clk 0:02:14]} 12. Qd2 {[%clk 0:02:25]}  Qxd2+ {[%clk 0:02:14]} 13. Kxd2 {[%clk 0:02:23]}  Rd8 {[%clk 0:02:13]} 14. Bd3 {[%clk 0:02:22]}  b6 {[%clk 0:02:02]} 15. h3 {[%clk 0:02:04]}  Bb7 {[%clk 0:02:01]} 16. c4 {[%clk 0:02:01]}  Nde7 {[%clk 0:01:53]} 17. Ke3 {[%clk 0:01:55]}  Rd7 {[%clk 0:01:44]} 18. Rhd1 {[%clk 0:01:53]}  Rad8 {[%clk 0:01:44]} 19. Rac1 {[%clk 0:01:34]}  g6 {[%clk 0:01:23]} 20. Bh4 {[%clk 0:01:29]}  Kg7 {[%clk 0:01:22]} 21. Be4 {[%clk 0:01:26]}  f6 {[%clk 0:01:22]} 22. Bg3 {[%clk 0:01:18]}  g5 {[%clk 0:01:10]} 23. Bh2 {[%clk 0:01:14]}  h5 {[%clk 0:01:05]} 24. g4 {[%clk 0:01:13]}  hxg4 {[%clk 0:00:55]} 25. hxg4 {[%clk 0:01:14]}  Na5 {[%clk 0:00:35]} 26. Bxb7 {[%clk 0:01:10]}  Rxb7 {[%clk 0:00:33]} 27. Ke2 {[%clk 0:00:54]}  Rc8 {[%clk 0:00:30]} 28. d5 {[%clk 0:00:38]}  exd5 {[%clk 0:00:19]} 29. cxd5 {[%clk 0:00:38]}  Rxc1 {[%clk 0:00:19]} 30. Rxc1 {[%clk 0:00:39]}  Nxd5 {[%clk 0:00:20]} 31. Nd4 {[%clk 0:00:39]}  Kg6 {[%clk 0:00:18]} 32. Bd6 {[%clk 0:00:36]}  Rd7 {[%clk 0:00:17]} 33. Nf5 {[%clk 0:00:36]}  b5 {[%clk 0:00:14]} 34. Rc5 {[%clk 0:00:34]}  Nf4+ {[%clk 0:00:08]} 35. Bxf4 {[%clk 0:00:34]}  gxf4 {[%clk 0:00:09]} 36. Rxb5 {[%clk 0:00:32]}  Nc4 {[%clk 0:00:10]} 37. Kf3 {[%clk 0:00:31]}  Nxa3 {[%clk 0:00:09]} 38. Rb8 {[%clk 0:00:30]}  Nc4 {[%clk 0:00:06]} 39. Kxf4 {[%clk 0:00:25]}  Ne5 {[%clk 0:00:06]} 40. Ra8 {[%clk 0:00:20]}  Kf7 {[%clk 0:00:05]} 41. Ke4 {[%clk 0:00:18]}  Rc7 {[%clk 0:00:06]} 42. Nh6+ {[%clk 0:00:16]}  Kg6 {[%clk 0:00:05]} 43. Nf5 {[%clk 0:00:16]}  Nxg4 {[%clk 0:00:06]} 44. Rg8+ {[%clk 0:00:14]}  Kh5 {[%clk 0:00:05]} 45. Ng3+ {[%clk 0:00:11]}  Kh4 {[%clk 0:00:06]} 46. Kf4 {[%clk 0:00:12]}  Rc4+ {[%clk 0:00:05]} 47. Ne4 {[%clk 0:00:12]}  Nxf2 {[%clk 0:00:05]} 48. Rh8# {[%clk 0:00:11]} 1-0


[Site "https://www.chess.com"]

[Event "Titled Tuesday Blitz July 25 Late 2023"]
[White "Benedetti, Julio"]
[Black "Wu, Derek"]
[WhiteFideId "172545"]
[BlackFideId "30914558"]
[WhiteElo "2518"]
[BlackElo "2755"]
[Result "0-1"]
[Round "7"]
[TimeControl "180+2"]
[Date "2023.07.25"]
[WhiteClock "0:00:00"]
[BlackClock "0:00:33"]
[Board "56"]

1. e4 {[%clk 0:03:00]}  e5 {[%clk 0:02:59]} 2. Nf3 {[%clk 0:03:00]}  Nc6 {[%clk 0:03:00]} 3. Bc4 {[%clk 0:03:00]}  Bc5 {[%clk 0:02:59]} 4. d3 {[%clk 0:03:01]}  Nf6 {[%clk 0:02:58]} 5. c3 {[%clk 0:03:01]}  d6 {[%clk 0:02:58]} 6. Bb3 {[%clk 0:03:01]}  a5 {[%clk 0:02:57]} 7. a4 {[%clk 0:03:01]}  Ba7 {[%clk 0:02:55]} 8. Nbd2 {[%clk 0:03:01]}  O-O {[%clk 0:02:54]} 9. Qe2 {[%clk 0:03:01]}  Be6 {[%clk 0:02:54]} 10. Bc2 {[%clk 0:03:01]}  Re8 {[%clk 0:02:54]} 11. h3 {[%clk 0:02:51]}  Ne7 {[%clk 0:02:53]} 12. Nf1 {[%clk 0:02:50]}  Ng6 {[%clk 0:02:53]} 13. g4 {[%clk 0:02:45]}  d5 {[%clk 0:02:50]} 14. Ng3 {[%clk 0:02:38]}  Nf4 {[%clk 0:02:34]} 15. Bxf4 {[%clk 0:02:37]}  exf4 {[%clk 0:02:35]} 16. Nf5 {[%clk 0:02:37]}  dxe4 {[%clk 0:02:21]} 17. dxe4 {[%clk 0:02:37]}  Qc8 {[%clk 0:02:06]} 18. Kf1 {[%clk 0:02:02]}  Bd5 {[%clk 0:01:59]} 19. e5 {[%clk 0:01:52]}  Qe6 {[%clk 0:01:44]} 20. Kg1 {[%clk 0:01:16]}  Nd7 {[%clk 0:01:39]} 21. Re1 {[%clk 0:00:47]}  Bxf3 {[%clk 0:01:37]} 22. Qxf3 {[%clk 0:00:47]}  Nxe5 {[%clk 0:01:37]} 23. Qxf4 {[%clk 0:00:36]}  Nf3+ {[%clk 0:01:33]} 24. Qxf3 {[%clk 0:00:34]}  Qxe1+ {[%clk 0:01:33]} 25. Kg2 {[%clk 0:00:35]}  Qe2 {[%clk 0:01:11]} 26. Bd3 {[%clk 0:00:11]}  Qxf3+ {[%clk 0:01:10]} 27. Kxf3 {[%clk 0:00:11]}  Rad8 {[%clk 0:01:10]} 28. Rd1 {[%clk 0:00:07]}  g6 {[%clk 0:01:08]} 29. Ng3 {[%clk 0:00:06]}  Kg7 {[%clk 0:01:05]} 30. h4 {[%clk 0:00:05]}  h6 {[%clk 0:00:58]} 31. Ne2 {[%clk 0:00:04]}  Re7 {[%clk 0:00:54]} 32. Nf4 {[%clk 0:00:02]}  Red7 {[%clk 0:00:54]} 33. g5 {[%clk 0:00:02]}  c6 {[%clk 0:00:43]} 34. Ke2 {[%clk 0:00:02]}  Bb8 {[%clk 0:00:41]} 35. Ng2 {[%clk 0:00:02]}  Re7+ {[%clk 0:00:37]} 36. Ne3 {[%clk 0:00:02]}  hxg5 {[%clk 0:00:35]} 37. hxg5 {[%clk 0:00:03]}  Bf4 {[%clk 0:00:36]} 38. Rg1 {[%clk 0:00:03]}  Rde8 {[%clk 0:00:36]} 39. Rg4 {[%clk 0:00:01]}  Bxe3 {[%clk 0:00:36]} 40. fxe3 {[%clk 0:00:02]}  Rxe3+ {[%clk 0:00:37]} 41. Kd2 {[%clk 0:00:03]}  Rf3 {[%clk 0:00:34]} 42. b4 {[%clk 0:00:02]}  Rf2+ {[%clk 0:00:34]} 43. Kd1 {[%clk 0:00:01]}  Rd8 {[%clk 0:00:33]} 44. Kc1 {[%clk 0:00:00]}  Rxd3 {[%clk 0:00:33]} 0-1


[Site "https://www.chess.com"]

[Event "Titled Tuesday Blitz July 25 Late 2023"]
[White "Bernabeu Lopez, Carlos Javier"]
[Black "Machidon, Cristi"]
[WhiteFideId "2235366"]
[BlackFideId "13904590"]
[WhiteElo "2650"]
[BlackElo "2513"]
[Result "1-0"]
[Round "7"]
[TimeControl "180+2"]
[Date "2023.07.25"]
[WhiteClock "0:02:02"]
[BlackClock "0:00:00"]
[Board "58"]

1. e4 {[%clk 0:03:00]}  Nc6 {[%clk 0:02:58]} 2. Nf3 {[%clk 0:03:00]}  e5 {[%clk 0:02:58]} 3. Bb5 {[%clk 0:03:00]}  a6 {[%clk 0:02:58]} 4. Ba4 {[%clk 0:03:01]}  Nf6 {[%clk 0:02:58]} 5. O-O {[%clk 0:03:01]}  Be7 {[%clk 0:02:57]} 6. d3 {[%clk 0:03:01]}  b5 {[%clk 0:02:57]} 7. Bb3 {[%clk 0:03:02]}  O-O {[%clk 0:02:57]} 8. a4 {[%clk 0:03:03]}  Rb8 {[%clk 0:02:53]} 9. axb5 {[%clk 0:03:02]}  axb5 {[%clk 0:02:54]} 10. Nc3 {[%clk 0:03:03]}  d6 {[%clk 0:02:54]} 11. h3 {[%clk 0:03:03]}  Be6 {[%clk 0:02:51]} 12. Bxe6 {[%clk 0:02:53]}  fxe6 {[%clk 0:02:52]} 13. Ne2 {[%clk 0:02:52]}  Qe8 {[%clk 0:02:47]} 14. Ng3 {[%clk 0:02:52]}  h6 {[%clk 0:02:26]} 15. Be3 {[%clk 0:02:52]}  Qg6 {[%clk 0:02:24]} 16. Nh4 {[%clk 0:02:52]}  Qf7 {[%clk 0:02:23]} 17. Ra6 {[%clk 0:02:49]}  Nb4 {[%clk 0:02:18]} 18. Ra7 {[%clk 0:02:48]}  c5 {[%clk 0:02:06]} 19. Qe2 {[%clk 0:02:39]}  Nc6 {[%clk 0:02:05]} 20. Rc7 {[%clk 0:02:39]}  Rfc8 {[%clk 0:02:04]} 21. Rxc8+ {[%clk 0:02:39]}  Rxc8 {[%clk 0:02:05]} 22. Nf3 {[%clk 0:02:39]}  Ra8 {[%clk 0:02:02]} 23. Rb1 {[%clk 0:02:40]}  Nh5 {[%clk 0:01:55]} 24. Nxh5 {[%clk 0:02:38]}  Qxh5 {[%clk 0:01:56]} 25. Qd1 {[%clk 0:02:38]}  Qe8 {[%clk 0:01:38]} 26. Ra1 {[%clk 0:02:37]}  Qc8 {[%clk 0:01:36]} 27. c3 {[%clk 0:02:35]}  Ra6 {[%clk 0:01:34]} 28. Rxa6 {[%clk 0:02:35]}  Qxa6 {[%clk 0:01:35]} 29. Qb3 {[%clk 0:02:36]}  Kf7 {[%clk 0:01:31]} 30. g3 {[%clk 0:02:35]}  Bd8 {[%clk 0:01:11]} 31. Kg2 {[%clk 0:02:36]}  c4 {[%clk 0:00:52]} 32. Qc2 {[%clk 0:02:36]}  Bb6 {[%clk 0:00:48]} 33. Qe2 {[%clk 0:02:30]}  Bxe3 {[%clk 0:00:44]} 34. Qxe3 {[%clk 0:02:31]}  Ke7 {[%clk 0:00:42]} 35. Nh4 {[%clk 0:02:29]}  b4 {[%clk 0:00:36]} 36. dxc4 {[%clk 0:02:25]}  Qxc4 {[%clk 0:00:35]} 37. Qf3 {[%clk 0:02:25]}  bxc3 {[%clk 0:00:18]} 38. bxc3 {[%clk 0:02:26]}  Ke8 {[%clk 0:00:07]} 39. Ng6 {[%clk 0:02:24]}  d5 {[%clk 0:00:06]} 40. Qf8+ {[%clk 0:02:20]}  Kd7 {[%clk 0:00:05]} 41. Qf7+ {[%clk 0:02:21]}  Kd8 {[%clk 0:00:05]} 42. Qg8+ {[%clk 0:02:10]}  Kc7 {[%clk 0:00:04]} 43. Qxg7+ {[%clk 0:02:11]}  Kb6 {[%clk 0:00:04]} 44. Nxe5 {[%clk 0:02:11]}  Qxe4+ {[%clk 0:00:02]} 45. Nf3 {[%clk 0:02:11]}  e5 {[%clk 0:00:02]} 46. Qxh6 {[%clk 0:02:08]}  d4 {[%clk 0:00:02]} 47. cxd4 {[%clk 0:02:08]}  exd4 {[%clk 0:00:02]} 48. Qd6 {[%clk 0:02:07]}  d3 {[%clk 0:00:02]} 49. h4 {[%clk 0:02:07]}  Kb5 {[%clk 0:00:02]} 50. h5 {[%clk 0:02:06]}  Kc4 {[%clk 0:00:00]} 51. h6 {[%clk 0:02:02]} 1-0


[Site "https://www.chess.com"]